bitfinex/quotes_BTCUSD_20250826
["timestamp","ask_amount","ask_price","bid_price","bid_amount"]
[1756228957617,0.00226981,110110.0,110100.0,1.01159916]
[1756228957878,0.00012981,110110.0,110100.0,1.01159916]
[1756228960525,0.00012981,110110.0,110100.0,1.01155916]
[1756228962320,0.00012981,110110.0,110100.0,0.45586408]
[1756228962536,0.00012981,110110.0,110100.0,1.01155916]
[1756228963208,0.00012981,110110.0,110100.0,1.27615916]
[1756228963623,0.00012981,110110.0,110100.0,1.11811916]
[1756228963839,0.00012981,110110.0,110100.0,1.27615916]
[1756228964284,0.00012981,110110.0,110100.0,1.11811916]
[1756228964497,0.00012981,110110.0,110100.0,1.27615916]
[1756228965157,0.18176635,110110.0,110100.0,0.93646612]
[1756228965373,0.18705635,110110.0,110100.0,1.27089916]
[1756228965623,0.18390635,110110.0,110100.0,1.27286916]
[1756228965832,0.18176635,110110.0,110100.0,1.27611916]
[1756228966285,0.18390635,110110.0,110100.0,1.27611916]
[1756228967786,0.18390635,110110.0,110100.0,1.27286916]
[1756228968883,0.18390635,110110.0,110100.0,1.11807916]
[1756228969100,0.18390635,110110.0,110100.0,0.85347916]
[1756228969315,0.18390635,110110.0,110100.0,0.82661612]
[1756228969566,0.18705635,110110.0,110100.0,0.11091104]
[1756228969787,0.18705635,110110.0,110100.0,0.26895104]
[1756228972431,0.74275143,110110.0,110100.0,0.17748902]
[1756228972894,0.18705635,110110.0,110100.0,0.17748902]
[1756228973104,0.19556129,110110.0,110100.0,0.17748902]
[1756228974188,0.1955659,110110.0,110100.0,0.17748902]
[1756228974397,0.75126098,110110.0,110100.0,0.17748902]
[1756228975324,6.01667219,110110.0,110100.0,0.002]
[1756228975560,6.06077086,110110.0,110100.0,0.002]
[1756228975816,6.06715308,110110.0,110100.0,0.002]
[1756228976059,6.06715308,110110.0,110100.0,0.001]
[1756228976294,0.52165304,110100.0,110090.0,0.158]
[1756228976516,0.18168604,110080.0,110070.0,0.06984]
[1756228976739,0.73738112,110080.0,110070.0,0.22784]
[1756228976956,0.74267112,110080.0,110070.0,0.24528902]
[1756228977200,0.18171906,110060.0,110050.0,0.1423596]
[1756228977438,0.18171906,110060.0,110050.0,0.39182162]
[1756228977668,0.18700906,110060.0,110050.0,0.24528902]
[1756228977911,0.18700906,110060.0,110050.0,0.26962717]
[1756228978165,0.18700906,110060.0,110050.0,0.36108919]
[1756228978413,0.18385906,110060.0,110050.0,0.38050821]
[1756228978648,0.18385906,110060.0,110050.0,0.36353593]
[1756228978890,0.18385906,110060.0,110050.0,0.56272052]
[1756228979109,0.18171906,110060.0,110050.0,0.56597052]
[1756228979465,0.18271906,110060.0,110050.0,0.57397052]
[1756228979686,0.001,110060.0,110050.0,0.57397052]
[1756228980719,0.001,110060.0,110050.0,1.1296656]
[1756228981209,0.18271906,110060.0,110050.0,0.57397052]
[1756228982526,0.18800906,110060.0,110050.0,0.38705495]
[1756228982754,0.74370414,110060.0,110050.0,0.00847674]
[1756228982994,5.50094714,110060.0,110050.0,0.16647674]
[1756228983208,4.97257406,110060.0,110050.0,0.16647674]
[1756228983417,5.50094714,110060.0,110050.0,0.16647674]
[1756228983636,5.50094714,110060.0,110050.0,0.00847674]
[1756228983854,5.49994714,110060.0,110050.0,0.00347674]
[1756228984079,5.52726914,110060.0,110050.0,0.00347674]
[1756228984308,5.61873116,110060.0,110050.0,0.00347674]
[1756228984749,5.22107608,110060.0,110050.0,0.00047674]
[1756228984960,5.61873116,110060.0,110050.0,0.00047674]
[1756228985166,5.77677116,110060.0,110050.0,0.00047674]
[1756228986346,5.52726914,110060.0,110050.0,0.00047674]
[1756228988611,4.96842406,110060.0,110050.0,0.00248674]
[1756228989025,4.96842406,110060.0,110050.0,0.18422231]
[1756228989240,4.96842406,110060.0,110050.0,0.00248674]
[1756228989447,0.21426106,110060.0,110050.0,0.00248674]
[1756228989891,0.21426106,110060.0,110050.0,0.00047674]
[1756228990110,0.21426106,110060.0,110050.0,0.18221231]
[1756228990366,0.21118106,110060.0,110050.0,0.18422231]
[1756228990573,0.029462,110060.0,110050.0,0.18728231]
[1756228990793,0.18171744,110070.0,110050.0,0.20473133]
[1756228990998,0.18171744,110070.0,110060.0,0.15804]
[1756228991227,0.21426844,110070.0,110060.0,0.15804]
[1756228991446,0.21426844,110070.0,110060.0,0.33975906]
[1756228991667,0.76996352,110070.0,110060.0,0.15804]
[1756228991891,0.18171906,110060.0,110050.0,0.01792576]
[1756228992140,0.74049414,110060.0,110050.0,0.17600576]
[1756228992357,0.74264414,110060.0,110050.0,0.15855674]
[1756228992823,0.74264414,110060.0,110050.0,0.00047674]
[1756228993929,0.76996814,110060.0,110050.0,0.00147674]
[1756228994412,0.76996814,110060.0,110050.0,0.18321231]
[1756228995055,0.76996814,110060.0,110050.0,0.00147674]
[1756228995510,0.76688814,110060.0,110050.0,0.18522231]
[1756228995726,0.76688814,110060.0,110050.0,0.18828231]
[1756228995727,0.21119306,110060.0,110050.0,0.18828231]
[1756228995957,0.74264414,110060.0,110050.0,0.00147674]
[1756228996176,0.76996614,110060.0,110050.0,0.15951674]
[1756228996886,0.76996614,110060.0,110050.0,0.34125231]
[1756228997099,0.76688614,110060.0,110050.0,0.34326231]
[1756228997333,0.58516708,110060.0,110050.0,0.34326231]
[1756228997598,0.027322,110060.0,110050.0,0.34632231]
[1756228998225,0.029472,110060.0,110050.0,0.34632231]
[1756228998871,0.027322,110060.0,110050.0,0.34632231]
[1756228999773,0.027322,110060.0,110050.0,0.98934641]
[1756229000245,0.341,110070.0,110060.0,0.18171906]
[1756229000459,0.36832,110070.0,110060.0,0.18678906]
[1756229000678,0.34,110070.0,110060.0,0.18678906]
[1756229000889,0.34,110070.0,110060.0,0.18578906]
[1756229001326,0.35955538,110070.0,110060.0,0.18578906]
[1756229001541,0.36804351,110070.0,110060.0,0.18578906]
[1756229001753,0.36804351,110070.0,110060.0,0.18678906]
[1756229002598,0.93205182,110080.0,110070.0,0.18170255]
[1756229002770,5.71950535,110080.0,110070.0,0.33974255]
[1756229003164,5.90427127,110080.0,110070.0,0.18170255]
[1756229003366,5.90427127,110080.0,110060.0,0.18371906]
[1756229003572,0.6127462,110080.0,110070.0,0.18170255]
[1756229003776,5.3699892,110080.0,110070.0,0.18170255]
[1756229004183,5.3740692,110080.0,110070.0,0.18170255]
[1756229004803,5.92976428,110080.0,110070.0,0.18170255]
[1756229005207,5.96242082,110080.0,110070.0,0.18170255]
[1756229006919,5.78073478,110080.0,110070.0,0.18170255]
[1756229007129,5.74807824,110080.0,110070.0,0.18170255]
[1756229007358,5.74499824,110080.0,110070.0,0.18371255]
[1756229007578,0.43206016,110080.0,110070.0,0.18371255]
[1756229010260,0.42991016,110080.0,110070.0,0.18677255]
[1756229010466,0.05355342,110080.0,110070.0,0.20422157]
[1756229010687,0.02906041,110080.0,110070.0,0.20422157]
[1756229010883,0.02906041,110080.0,110070.0,0.27410157]
[1756229011420,0.02906041,110080.0,110070.0,0.92125867]
[1756229011877,0.02906041,110080.0,110070.0,0.92225867]
[1756229012069,0.02906041,110080.0,110070.0,1.08025867]
[1756229012292,0.00949406,110080.0,110070.0,1.08025867]
[1756229012522,0.00949406,110080.0,110070.0,0.92225867]
[1756229012790,0.00849406,110080.0,110070.0,0.52456359]
[1756229013003,0.00849406,110080.0,110070.0,0.52656359]
[1756229013227,0.34308,110090.0,110080.0,0.19913506]
[1756229013458,0.37332998,110090.0,110080.0,0.19913506]
[1756229013701,0.37332998,110090.0,110080.0,0.35713506]
[1756229014355,0.38257828,110090.0,110080.0,0.35813506]
[1756229014780,0.38257828,110090.0,110080.0,0.36013506]
[1756229015223,0.36809998,110090.0,110080.0,0.36520506]
[1756229015644,0.02809998,110090.0,110080.0,0.36520506]
[1756229016098,0.027313,110100.0,110090.0,0.19911856]
[1756229016298,0.02449301,110120.0,110110.0,0.18163654]
[1756229016552,0.7977284,110130.0,110120.0,0.18162005]
[1756229016758,0.7977284,110130.0,110120.0,0.18363005]
[1756229016759,0.06409508,110130.0,110120.0,0.18363005]
[1756229016965,0.37960207,110130.0,110120.0,0.18363005]
[1756229017389,0.40703692,110130.0,110120.0,0.18363005]
[1756229018062,0.40703692,110130.0,110120.0,0.18463005]
[1756229018063,0.40702148,110130.0,110120.0,0.18463005]
[1756229018283,0.06702148,110130.0,110120.0,0.18463005]
[1756229018497,0.03756648,110130.0,110120.0,0.18786005]
[1756229018715,0.35799928,110130.0,110120.0,0.18786005]
[1756229018953,0.36004928,110130.0,110120.0,0.18786005]
[1756229019850,0.36003304,110130.0,110120.0,0.18786005]
[1756229020058,0.36003304,110130.0,110120.0,0.18463005]
[1756229020265,0.36309304,110130.0,110120.0,0.34058005]
[1756229020522,0.36003304,110130.0,110120.0,0.34268005]
[1756229020723,0.91572812,110130.0,110120.0,0.34268005]
[1756229020928,0.91572812,110130.0,110120.0,0.34058005]
[1756229021138,0.91878812,110130.0,110120.0,0.34058005]
[1756229021791,0.91572812,110130.0,110120.0,0.34268005]
[1756229022204,0.91878812,110130.0,110120.0,0.34058005]
[1756229023111,0.91878812,110130.0,110120.0,0.18262005]
[1756229023375,0.91877827,110130.0,110120.0,0.34058005]
[1756229025061,1.10038182,110130.0,110120.0,0.18262005]
[1756229025270,0.91877827,110130.0,110120.0,0.34054005]
[1756229025686,0.91571827,110130.0,110120.0,0.34264005]
[1756229026560,0.91571827,110130.0,110120.0,0.18472005]
[1756229026731,0.91571827,110130.0,110120.0,0.34264005]
[1756229028157,0.91877827,110130.0,110120.0,0.34054005]
[1756229029722,0.91877827,110130.0,110120.0,0.001]
[1756229029723,1.10038182,110130.0,110120.0,0.001]
[1756229029935,1.10038182,110130.0,110120.0,0.34054005]
[1756229030492,0.91877827,110130.0,110120.0,0.34054005]
[1756229030918,0.94608627,110130.0,110120.0,0.34054005]
[1756229032885,0.91877827,110130.0,110120.0,0.34054005]
[1756229033068,0.94608527,110130.0,110120.0,0.34054005]
[1756229033280,0.94608717,110130.0,110120.0,0.34054005]
[1756229033498,0.94302717,110130.0,110120.0,0.34264005]
[1756229033711,0.91572017,110130.0,110120.0,0.34587005]
[1756229034140,0.91572017,110130.0,110120.0,0.34264005]
[1756229034141,0.36002509,110130.0,110120.0,0.34264005]
[1756229034349,0.91572017,110130.0,110120.0,0.34264005]
[1756229036460,0.36002509,110130.0,110120.0,0.34264005]
[1756229037104,0.91572017,110130.0,110120.0,0.34264005]
[1756229038158,0.93527322,110130.0,110120.0,0.34264005]
[1756229038777,0.02835743,110130.0,110120.0,0.91901415]
[1756229039029,0.00880438,110130.0,110120.0,0.36331907]
[1756229039424,0.00880438,110130.0,110120.0,0.43315907]
[1756229039645,0.00880438,110130.0,110120.0,0.43215907]
[1756229040083,0.00880438,110130.0,110120.0,0.43615907]
[1756229041657,0.00880438,110130.0,110120.0,0.52762109]
[1756229041862,0.00880438,110130.0,110120.0,1.08331617]
[1756229042123,0.00032985,110130.0,110120.0,1.08331617]
[1756229042333,0.00882535,110130.0,110120.0,1.08331617]
[1756229042753,0.00882535,110130.0,110120.0,0.52762109]
[1756229042969,0.00032985,110130.0,110120.0,1.08331617]
[1756229043184,0.00882784,110130.0,110120.0,1.08331617]
[1756229043413,0.00032985,110130.0,110120.0,1.08331617]
[1756229043626,0.00883083,110130.0,110120.0,0.92539617]
[1756229043831,0.00883083,110130.0,110120.0,0.36970109]
[1756229044039,0.00883083,110130.0,110120.0,0.52754109]
[1756229045795,0.00883083,110130.0,110120.0,0.56885565]
[1756229046403,0.01088083,110130.0,110120.0,0.56885565]
[1756229046941,0.00883083,110130.0,110120.0,0.56885565]
[1756229048890,0.01091083,110130.0,110120.0,0.43280907]
[1756229049106,1.11084212,110130.0,110120.0,0.25546005]
[1756229049364,1.11084212,110130.0,110120.0,0.18562005]
[1756229049567,1.1352512,110130.0,110120.0,0.18562005]
[1756229049808,1.1352512,110130.0,110120.0,0.34342005]
[1756229050007,0.95364765,110130.0,110120.0,0.34342005]
[1756229050842,0.36844349,110130.0,110120.0,0.36595907]
[1756229051295,0.37052349,110130.0,110120.0,0.36595907]
[1756229051497,0.36844349,110130.0,110120.0,0.36595907]
[1756229052256,0.368456,110130.0,110120.0,0.36595907]
[1756229052684,0.370536,110130.0,110120.0,0.36595907]
[1756229056095,0.370536,110130.0,110120.0,0.36293907]
[1756229056313,0.92925108,110130.0,110120.0,0.20306907]
[1756229056522,0.92925108,110130.0,110120.0,0.36082907]
[1756229058238,0.92925183,110130.0,110120.0,0.36082907]
[1756229058794,0.37355675,110130.0,110120.0,0.36289907]
[1756229059005,0.92925183,110130.0,110120.0,0.36289907]
[1756229059633,0.90661917,110130.0,110120.0,0.36289907]
[1756229059845,0.92623543,110130.0,110120.0,0.36289907]
[1756229060273,0.00884409,110130.0,110120.0,0.36591907]
[1756229060483,0.00032985,110130.0,110120.0,0.92161415]
[1756229060913,0.00032985,110130.0,110120.0,0.36591907]
[1756229061343,0.00240985,110130.0,110120.0,0.36591907]
[1756229061775,0.00032985,110130.0,110120.0,0.36591907]
[1756229062411,0.00032985,110130.0,110120.0,0.43575907]
[1756229064403,0.00032985,110130.0,110120.0,0.43571907]
[1756229065237,0.00240985,110130.0,110120.0,0.27799907]
[1756229065383,0.00240985,110130.0,110120.0,0.43571907]
[1756229066161,0.00542985,110130.0,110120.0,0.43062907]
[1756229066372,0.00542985,110130.0,110120.0,0.43269907]
[1756229066574,0.00240985,110130.0,110120.0,0.43571907]
[1756229066773,0.00032985,110130.0,110120.0,0.43571907]
[1756229069630,0.00240985,110130.0,110120.0,0.43571907]
[1756229070800,0.00032985,110130.0,110120.0,0.43571907]
[1756229071888,0.00032985,110130.0,110120.0,0.99141415]
[1756229072887,0.00032985,110130.0,110120.0,1.08287617]
[1756229075061,0.00032985,110130.0,110120.0,0.92515617]
[1756229075282,0.00032985,110130.0,110120.0,1.08283617]
[1756229075459,0.00240985,110130.0,110120.0,0.52412109]
[1756229076219,0.00032985,110130.0,110120.0,0.52714109]
[1756229078744,0.00032985,110130.0,110120.0,1.08283617]
[1756229079576,0.00032985,110130.0,110120.0,0.92515617]
[1756229079766,0.00032985,110130.0,110120.0,1.08279617]
[1756229079994,0.00032985,110130.0,110120.0,0.52710109]
[1756229082288,0.1819334,110130.0,110120.0,0.52710109]
[1756229082495,0.1840234,110130.0,110120.0,0.43579907]
[1756229082872,0.1840234,110130.0,110120.0,0.43264907]
[1756229086696,0.00241985,110130.0,110120.0,0.43264907]
[1756229087054,0.00032985,110130.0,110120.0,1.12320677]
[1756229087907,0.00032985,110130.0,110120.0,1.11920677]
[1756229088399,0.74282848,110130.0,110120.0,0.24688902]
[1756229088603,0.74282848,110130.0,110120.0,0.1596]
[1756229088604,1.08282848,110130.0,110120.0,0.1596]
[1756229088742,1.11013448,110130.0,110120.0,0.1596]
[1756229088950,5.96734703,110130.0,110120.0,0.1596]
[1756229089186,5.87590174,110130.0,110120.0,0.1596]
[1756229089403,5.87590174,110130.0,110120.0,0.1616]
[1756229090236,5.86737748,110130.0,110120.0,0.1616]
[1756229090441,5.86737748,110130.0,110120.0,0.1596]
[1756229090658,5.86737748,110130.0,110120.0,0.1606]
[1756229091097,5.86737748,110130.0,110120.0,0.1586]
[1756229091534,5.86737748,110130.0,110120.0,0.1596]
[1756229093617,5.86737748,110130.0,110120.0,0.15956]
[1756229095625,5.86737748,110130.0,110120.0,0.002]
[1756229095833,5.95882277,110130.0,110120.0,0.15956]
[1756229096200,5.95882277,110130.0,110120.0,0.002]
[1756229096408,6.05028479,110130.0,110120.0,0.002]
[1756229096605,6.63409214,110130.0,110120.0,0.002]
[1756229096828,6.08477849,110130.0,110120.0,0.002]
[1756229097453,6.08477849,110130.0,110120.0,0.001]
[1756229097644,0.52163654,110110.0,110100.0,0.14404]
[1756229097892,0.18165304,110100.0,110090.0,0.24752862]
[1756229098297,0.18374304,110100.0,110090.0,0.24962862]
[1756229098449,0.18374304,110100.0,110090.0,0.25277862]
[1756229098859,0.21105404,110100.0,110090.0,0.25277862]
[1756229099215,0.21105404,110100.0,110090.0,0.25477862]
[1756229099896,0.22024008,110100.0,110090.0,0.17910902]
[1756229100126,0.22024008,110100.0,110090.0,0.18225902]
[1756229100565,1.11904516,110100.0,110090.0,0.004]
[1756229100780,0.55416404,110100.0,110090.0,0.16152]
[1756229101007,0.027311,110100.0,110090.0,1.01331652]
[1756229101190,0.52163822,110110.0,110100.0,0.19910206]
[1756229101397,0.54894622,110110.0,110100.0,0.20225206]
[1756229101640,0.54894622,110110.0,110100.0,0.20435206]
[1756229101856,0.027308,110110.0,110100.0,0.20435206]
[1756229102094,0.20894454,110110.0,110100.0,0.20435206]
[1756229102301,0.20894454,110110.0,110100.0,0.02269902]
[1756229102532,0.20894454,110110.0,110100.0,0.20662272]
[1756229102739,0.20894454,110110.0,110100.0,0.20435206]
[1756229103443,0.027308,110110.0,110100.0,0.85150916]
[1756229103655,0.53101357,110130.0,110110.0,0.18062693]
[1756229103864,0.027307,110120.0,110110.0,0.2003464]
[1756229104077,0.027307,110120.0,110110.0,0.36084595]
[1756229104493,0.20892705,110120.0,110110.0,0.36084595]
[1756229105293,0.20892705,110120.0,110110.0,0.36184595]
[1756229105495,0.027307,110120.0,110110.0,0.36184595]
[1756229105704,0.027307,110120.0,110110.0,0.98738103]
[1756229105909,0.20892705,110120.0,110110.0,0.43168595]
[1756229106340,0.20892705,110120.0,110110.0,0.43268595]
[1756229109047,0.027307,110120.0,110110.0,0.43268595]
[1756229109255,0.20892705,110120.0,110110.0,0.43268595]
[1756229112221,0.1819334,110130.0,110120.0,0.19906907]
[1756229112420,0.2112664,110130.0,110120.0,0.01943902]
[1756229112570,0.2112664,110130.0,110120.0,0.02464927]
[1756229113190,0.02763285,110130.0,110120.0,0.7619644]
[1756229113408,0.02763285,110130.0,110120.0,0.20399907]
[1756229113609,0.2102364,110130.0,110120.0,0.20399907]
[1756229113841,0.00132985,110130.0,110120.0,0.85115617]
[1756229114903,0.00032985,110130.0,110120.0,0.85115617]
[1756229115143,0.00032985,110130.0,110120.0,0.85215617]
[1756229115403,0.00032985,110130.0,110120.0,0.29646109]
[1756229115648,0.00032985,110130.0,110120.0,0.85215617]
[1756229115844,0.00032985,110130.0,110120.0,1.00959617]
[1756229116588,0.00032985,110130.0,110120.0,1.01059617]
[1756229118448,0.00032985,110130.0,110120.0,1.01966294]
[1756229118878,0.00032985,110130.0,110120.0,1.01059617]
[1756229120904,0.1869234,110130.0,110120.0,0.15936]
[1756229121113,0.00235985,110130.0,110120.0,0.3452403]
[1756229121322,0.1839634,110130.0,110120.0,0.34297005]
[1756229121525,0.1869234,110130.0,110120.0,0.17680902]
[1756229121771,1.08261848,110130.0,110120.0,0.002]
[1756229121990,5.83986148,110130.0,110120.0,0.002]
[1756229123725,5.99966148,110130.0,110120.0,0.002]
[1756229123950,5.99966148,110130.0,110120.0,0.001]
[1756229124166,0.52162005,110120.0,110110.0,0.1598]
[1756229124392,5.83954813,110120.0,110110.0,0.1598]
[1756229124600,1.08230513,110120.0,110110.0,0.1598]
[1756229125465,1.10961413,110120.0,110110.0,0.1598]
[1756229125705,1.11261413,110120.0,110110.0,0.1598]
[1756229125933,1.11361413,110120.0,110110.0,0.1598]
[1756229126366,0.55791905,110120.0,110110.0,0.1598]
[1756229126582,0.55495905,110120.0,110110.0,0.16179]
[1756229126784,0.55791905,110120.0,110110.0,0.16179]
[1756229127122,0.55791905,110120.0,110110.0,0.1598]
[1756229127334,0.18163654,110110.0,110100.0,0.02038902]
[1756229127537,0.18163654,110110.0,110100.0,0.36391272]
[1756229127744,0.18163654,110110.0,110100.0,0.36363206]
[1756229129184,0.55188905,110120.0,110100.0,0.36363206]
[1756229129899,0.55188905,110120.0,110100.0,0.36463206]
[1756229130111,0.55188905,110120.0,110110.0,0.18163654]
[1756229130470,0.55391905,110120.0,110110.0,0.18163654]
[1756229131466,0.55491905,110120.0,110110.0,0.18163654]
[1756229131798,0.55391905,110120.0,110110.0,0.18163654]
[1756229132004,0.55491905,110120.0,110110.0,0.18163654]
[1756229132791,0.368309,110120.0,110110.0,0.18656654]
[1756229133021,0.55195905,110120.0,110110.0,0.18656654]
[1756229133220,0.55195905,110120.0,110110.0,0.18362654]
[1756229133670,0.55491905,110120.0,110110.0,0.18362654]
[1756229134084,0.55491905,110120.0,110110.0,0.15928]
[1756229134287,0.55391905,110120.0,110110.0,0.15928]
[1756229134511,0.55391905,110120.0,110110.0,0.16328]
[1756229134914,0.55391905,110120.0,110110.0,0.15928]
[1756229135324,0.55391905,110120.0,110110.0,0.16028]
[1756229135530,0.55391905,110120.0,110110.0,0.34191654]
[1756229135739,0.55391905,110120.0,110110.0,0.16028]
[1756229136155,1.10961413,110120.0,110110.0,0.16028]
[1756229136365,6.51401423,110120.0,110110.0,0.001]
[1756229137409,0.18165304,110100.0,110090.0,0.1592]
[1756229137611,0.18374304,110100.0,110090.0,0.34291954]
[1756229138368,0.21105504,110100.0,110090.0,0.34291954]
[1756229138825,0.20896504,110100.0,110090.0,0.36346856]
[1756229139062,0.028312,110100.0,110090.0,0.36346856]
[1756229140142,0.20996504,110100.0,110090.0,0.36346856]
[1756229140526,0.18165304,110100.0,110090.0,0.36346856]
[1756229140735,0.18165304,110100.0,110090.0,0.36446856]
[1756229141353,0.52165144,110110.0,110100.0,0.18165304]
[1756229141562,0.52374144,110110.0,110100.0,0.20425206]
[1756229142193,0.52374144,110110.0,110100.0,0.01949902]
[1756229143450,1.08237652,110110.0,110100.0,0.17644902]
[1756229143866,1.08337652,110110.0,110100.0,0.17644902]
[1756229144884,0.74337652,110110.0,110100.0,0.17644902]
[1756229145305,1.08337652,110110.0,110100.0,0.17644902]
[1756229145722,1.08337652,110110.0,110100.0,0.17620902]
[1756229147190,0.52768144,110110.0,110100.0,0.17620902]
[1756229147405,1.08337652,110110.0,110100.0,0.17620902]
[1756229147617,1.08337652,110110.0,110100.0,0.17616902]
[1756229148473,1.08337652,110110.0,110100.0,0.01744902]
[1756229148684,1.08337652,110110.0,110100.0,0.1586]
[1756229148889,0.18165304,110100.0,110090.0,0.36463925]
[1756229149104,0.74237812,110100.0,110090.0,0.02444971]
[1756229149318,0.74237812,110100.0,110090.0,0.18304971]
[1756229149969,0.74237812,110100.0,110090.0,0.00700069]
[1756229150184,1.33238341,110100.0,110090.0,0.00700069]
[1756229150419,1.42384543,110100.0,110090.0,0.00700069]
[1756229150669,6.18108843,110100.0,110090.0,0.00700069]
[1756229150914,5.65271035,110100.0,110090.0,0.00800069]
[1756229151139,5.56126506,110100.0,110090.0,0.00800069]
[1756229151372,5.58938842,110100.0,110090.0,0.00800069]
[1756229151621,6.1450835,110100.0,110090.0,0.00700069]
[1756229151854,6.11696014,110100.0,110090.0,0.00700069]
[1756229153439,6.11856014,110100.0,110090.0,0.00700069]
[1756229156504,1.26969512,110100.0,110090.0,0.00700069]
[1756229156720,1.23943812,110100.0,110090.0,0.00905069]
[1756229156950,1.24237812,110100.0,110090.0,0.00700069]
[1756229158267,1.24237812,110100.0,110090.0,0.01300138]
[1756229158510,5.99962112,110100.0,110090.0,0.01300138]
[1756229158707,5.8602146,110100.0,110090.0,0.01300138]
[1756229158964,1.24225812,110100.0,110090.0,0.01505138]
[1756229159498,1.24225812,110100.0,110090.0,0.01300138]
[1756229160369,1.08043812,110100.0,110090.0,0.01505138]
[1756229160546,1.08043812,110100.0,110090.0,0.01815138]
[1756229160547,0.89714812,110100.0,110090.0,0.01815138]
[1756229160752,1.07834812,110100.0,110090.0,0.01815138]
[1756229161345,1.08043812,110100.0,110090.0,0.01815138]
[1756229161733,1.07834812,110100.0,110090.0,0.01815138]
[1756229161944,1.07834812,110100.0,110090.0,0.19982092]
[1756229162145,0.52265304,110100.0,110090.0,0.19982092]
[1756229162356,1.07834812,110100.0,110090.0,0.01815138]
[1756229162733,1.08043812,110100.0,110090.0,0.01815138]
[1756229162948,1.07834812,110100.0,110090.0,0.01815138]
[1756229163755,1.08337812,110100.0,110090.0,0.01300138]
[1756229163953,1.08337812,110100.0,110090.0,0.01505138]
[1756229164139,1.08043812,110100.0,110090.0,0.01505138]
[1756229164537,1.08043812,110100.0,110090.0,0.01815138]
[1756229166019,1.08337812,110100.0,110090.0,0.01300138]
[1756229168051,0.52474304,110100.0,110090.0,0.01809138]
[1756229168255,0.52265304,110100.0,110090.0,0.21720994]
[1756229169557,0.52265304,110100.0,110090.0,0.0355404]
[1756229169731,0.52265304,110100.0,110090.0,0.3782008]
[1756229169937,0.52265304,110100.0,110090.0,0.37592994]
[1756229171798,0.52265304,110100.0,110090.0,0.1942604]
[1756229172024,0.52265304,110100.0,110090.0,0.37592994]
[1756229172382,0.52265304,110100.0,110090.0,0.1942604]
[1756229172590,0.52265304,110100.0,110090.0,0.37592994]
[1756229173161,0.52265304,110100.0,110090.0,0.1942604]
[1756229173642,0.52165304,110100.0,110090.0,0.1942604]
[1756229173895,1.07930812,110100.0,110090.0,0.1920204]
[1756229174497,1.07734812,110100.0,110090.0,0.37680994]
[1756229174738,0.18165144,110110.0,110090.0,0.37680994]
[1756229174953,0.19383105,110120.0,110100.0,0.20449272]
[1756229175163,4.93887954,110110.0,110100.0,0.20222206]
[1756229175386,0.18163654,110110.0,110100.0,0.02253902]
[1756229175598,0.18165304,110100.0,110090.0,0.01300138]
[1756229175806,0.74047812,110100.0,110090.0,0.0304504]
[1756229176014,0.74243812,110100.0,110090.0,0.0304504]
[1756229176196,1.24091812,110100.0,110090.0,0.01300138]
[1756229176645,0.68522304,110100.0,110090.0,0.01300138]
[1756229176854,1.08243812,110100.0,110090.0,0.19467092]
[1756229177061,0.52165304,110100.0,110090.0,0.19976092]
[1756229177446,0.52361304,110100.0,110090.0,0.19664092]
[1756229177699,1.07930812,110100.0,110090.0,0.01497138]
[1756229177889,1.07930812,110100.0,110090.0,0.19664092]
[1756229178096,1.07930812,110100.0,110090.0,0.01497138]
[1756229178306,1.07930812,110100.0,110090.0,0.01597138]
[1756229178651,1.08243812,110100.0,110090.0,0.01400138]
[1756229182297,1.08243812,110100.0,110090.0,0.01597138]
[1756229182510,0.52165304,110100.0,110090.0,0.21820994]
[1756229182722,1.23557162,110110.0,110090.0,0.21820994]
[1756229182933,0.18165304,110100.0,110090.0,0.21820994]
[1756229183551,0.18165304,110100.0,110090.0,0.21720994]
[1756229183965,1.07833162,110110.0,110090.0,0.21720994]
[1756229184174,1.07733162,110110.0,110090.0,0.21720994]
[1756229184384,1.07733162,110110.0,110100.0,0.18165304]
[1756229184596,0.52359654,110110.0,110100.0,0.34486304]
[1756229185216,0.52359654,110110.0,110100.0,0.16009]
[1756229185419,0.18165304,110100.0,110090.0,0.37323245]
[1756229185649,0.18361304,110100.0,110090.0,0.21408994]
[1756229185859,0.18361304,110100.0,110090.0,0.37208994]
[1756229186350,0.18165304,110100.0,110090.0,0.37520994]
[1756229186602,1.07733162,110110.0,110090.0,0.37520994]
[1756229186794,1.07733162,110110.0,110100.0,0.18165304]
[1756229186995,1.07929162,110110.0,110100.0,0.00197]
[1756229187759,0.18165304,110100.0,110090.0,0.37423994]
[1756229187961,0.18361304,110100.0,110090.0,0.37620994]
[1756229188381,0.18165304,110100.0,110090.0,0.37620994]
[1756229189021,1.08046162,110110.0,110090.0,0.37520994]
[1756229189230,1.07998023,110110.0,110100.0,0.001]
[1756229189426,1.08194023,110110.0,110100.0,0.001]
[1756229189820,0.18165304,110100.0,110090.0,0.37523994]
[1756229190037,0.18165304,110100.0,110090.0,0.37520994]
[1756229190642,0.18165304,110100.0,110090.0,0.37720994]
[1756229191050,0.18165304,110100.0,110090.0,0.22120994]
[1756229191406,0.18165304,110100.0,110090.0,0.37892994]
[1756229191799,0.18165304,110100.0,110090.0,0.22120994]
[1756229192009,0.18361304,110100.0,110090.0,0.37892994]
[1756229193425,0.18165304,110100.0,110090.0,0.37892994]
[1756229193861,0.18361304,110100.0,110090.0,0.37892994]
[1756229194463,0.18165304,110100.0,110090.0,0.37892994]
[1756229196996,0.18361304,110100.0,110090.0,0.1972204]
[1756229197423,0.73930812,110100.0,110090.0,0.1972204]
[1756229197637,0.74249812,110100.0,110090.0,0.01700138]
[1756229197844,0.74249812,110100.0,110090.0,0.17468138]
[1756229199327,1.08249812,110100.0,110090.0,0.17468138]
[1756229199745,0.68448304,110100.0,110090.0,0.17468138]
[1756229200160,1.24017812,110100.0,110090.0,0.17675138]
[1756229200772,1.08249812,110100.0,110090.0,0.17675138]
[1756229200976,1.08249812,110100.0,110090.0,0.17984138]
[1756229200977,1.07930812,110100.0,110090.0,0.17984138]
[1756229201154,1.07930812,110100.0,110090.0,0.17675138]
[1756229201575,1.08249812,110100.0,110090.0,0.17468138]
[1756229202070,1.07930812,110100.0,110090.0,0.17675138]
[1756229202415,0.52361304,110100.0,110090.0,0.35842092]
[1756229202623,0.52361304,110100.0,110090.0,0.36151092]
[1756229202831,0.52361304,110100.0,110090.0,0.17984138]
[1756229203036,0.52361304,110100.0,110090.0,0.36151092]
[1756229203243,0.52165304,110100.0,110090.0,0.36151092]
[1756229203449,0.76416323,110110.0,110090.0,0.37895994]
[1756229203665,0.73685023,110110.0,110090.0,0.37895994]
[1756229203882,0.18115515,110110.0,110100.0,0.18474304]
[1756229204096,0.18163654,110110.0,110100.0,0.20426206]
[1756229204303,0.027311,110120.0,110110.0,0.19908556]
[1756229204523,0.027311,110120.0,110110.0,1.00908266]
[1756229204739,0.00032985,110130.0,110120.0,0.19906907]
[1756229204950,0.00032985,110130.0,110120.0,0.20215907]
[1756229205170,0.00032985,110130.0,110120.0,0.20422907]